[Event "Live Chess"]
[Site "Chess.com"]
[Date "2023.05.20"]
[Round "-"]
[White "VovaOvchar1990"]
[Black "stevegleds"]
[Result "1-0"]
[WhiteElo "1181"]
[BlackElo "606"]
[TimeControl "300"]
[EndTime "10:58:57 PDT"]
[Termination "VovaOvchar1990 won by resignation"]

1. e4 {[%clk 0:04:56.6]} 1... e5 {[%clk 0:04:57.3]} 2. Bc4 {[%clk 0:04:54.9]}
2... g6 {[%clk 0:04:50]} 3. Nc3 {[%clk 0:04:52.3]} 3... Bg7 {[%clk 0:04:40.1]}
4. Nf3 {[%clk 0:04:50.4]} 4... c6 {[%clk 0:04:28.9]} 5. Ng5 {[%clk 0:04:47.8]}
5... Qxg5 {[%clk 0:04:23.9]} 6. O-O {[%clk 0:04:46.2]} 6... d5 {[%clk
0:04:18.5]} 7. exd5 {[%clk 0:04:44.3]} 7... cxd5 {[%clk 0:04:10.4]} 8. Bxd5
{[%clk 0:04:42.6]} 8... e4 {[%clk 0:04:03.5]} 9. Bxe4 {[%clk 0:04:31.1]} 9...
Bh3 {[%clk 0:03:53]} 10. Qf3 {[%clk 0:04:21.3]} 10... Be6 {[%clk 0:03:44.3]} 11.
Bxb7 {[%clk 0:04:18.5]} 11... Bg4 {[%clk 0:03:27.8]} 12. Qe4+ {[%clk 0:03:53.3]}
12... Qe7 {[%clk 0:03:16]} 13. Bxa8 {[%clk 0:03:25.6]} 13... Qxe4 {[%clk
0:03:00.2]} 14. Bxe4 {[%clk 0:03:23.7]} 14... Nf6 {[%clk 0:02:59.3]} 15. Re1
{[%clk 0:03:20.8]} 15... O-O {[%clk 0:02:56.3]} 16. Bd3 {[%clk 0:03:14.2]} 16...
Re8 {[%clk 0:02:54.7]} 17. Rxe8+ {[%clk 0:03:11]} 17... Nxe8 {[%clk 0:02:54]}
18. h3 {[%clk 0:03:09.8]} 18... Be6 {[%clk 0:02:52.4]} 19. Bb5 {[%clk
0:03:06.9]} 19... Nd6 {[%clk 0:02:50]} 20. d3 {[%clk 0:03:04.1]} 20... a6 {[%clk
0:02:46.3]} 21. Ba4 {[%clk 0:03:02.6]} 21... Nd7 {[%clk 0:02:37.8]} 22. Bf4
{[%clk 0:03:00.2]} 22... Be5 {[%clk 0:02:32.5]} 23. Bxe5 {[%clk 0:02:56.3]}
23... Nxe5 {[%clk 0:02:31.9]} 24. Re1 {[%clk 0:02:55.3]} 24... f6 {[%clk
0:02:25.3]} 25. f4 {[%clk 0:02:50]} 25... Nd7 {[%clk 0:02:11.8]} 26. Rxe6 {[%clk
0:02:48.2]} 26... Nc5 {[%clk 0:02:11.2]} 27. Rxd6 {[%clk 0:02:45.5]} 27... Nxa4
{[%clk 0:02:10.3]} 28. Nxa4 {[%clk 0:02:44.1]} 1-0

[Event "Live Chess"]
[Site "Chess.com"]
[Date "2023.05.20"]
[Round "-"]
[White "YF22Raptor"]
[Black "MaximKris"]
[Result "0-1"]
[WhiteElo "1016"]
[BlackElo "1860"]
[TimeControl "300"]
[EndTime "10:58:57 PDT"]
[Termination "MaximKris won by resignation"]

1. e4 {[%clk 0:04:58]} 1... e5 {[%clk 0:04:59]} 2. Nf3 {[%clk 0:04:57.2]} 2...
Nc6 {[%clk 0:04:58.2]} 3. d4 {[%clk 0:04:56.3]} 3... exd4 {[%clk 0:04:57.6]} 4.
Bc4 {[%clk 0:04:55.4]} 4... Bc5 {[%clk 0:04:56.5]} 5. Ng5 {[%clk 0:04:54]} 5...
Ne5 {[%clk 0:04:53.9]} 6. Nxf7 {[%clk 0:04:52.6]} 6... Nxf7 {[%clk 0:04:49.7]}
7. Bxf7+ {[%clk 0:04:51.7]} 7... Kxf7 {[%clk 0:04:49.6]} 8. Qh5+ {[%clk
0:04:50.6]} 8... g6 {[%clk 0:04:49.5]} 9. Qxc5 {[%clk 0:04:49.8]} 9... Nf6
{[%clk 0:04:44.9]} 10. Qxd4 {[%clk 0:04:47.1]} 10... Re8 {[%clk 0:04:44.4]} 11.
Nc3 {[%clk 0:04:44.5]} 11... d6 {[%clk 0:04:42.8]} 12. O-O {[%clk 0:04:38.4]}
12... c5 {[%clk 0:04:40.4]} 13. Qd3 {[%clk 0:04:33.2]} 13... a6 {[%clk
0:04:22.6]} 14. Bg5 {[%clk 0:04:31.8]} 14... Bd7 {[%clk 0:04:19.2]} 15. Nd5
{[%clk 0:04:27.8]} 15... Re6 {[%clk 0:04:18.2]} 16. Rfe1 {[%clk 0:04:20.7]}
16... Bb5 {[%clk 0:04:15.3]} 17. c4 {[%clk 0:04:15.7]} 17... Bc6 {[%clk
0:04:12.4]} 18. Nxf6 {[%clk 0:04:08.1]} 18... Rxf6 {[%clk 0:04:12.3]} 19. Bxf6
{[%clk 0:04:06.5]} 19... Qxf6 {[%clk 0:04:12.2]} 20. Qc3 {[%clk 0:03:56.6]}
20... Qxc3 {[%clk 0:04:06.7]} 21. bxc3 {[%clk 0:03:55.3]} 21... Re8 {[%clk
0:04:06.6]} 22. f3 {[%clk 0:03:53.7]} 22... b5 {[%clk 0:04:04.4]} 23. cxb5
{[%clk 0:03:49.2]} 23... Bxb5 {[%clk 0:04:04.3]} 24. Rac1 {[%clk 0:03:43.7]}
24... Bc4 {[%clk 0:04:02.9]} 25. a3 {[%clk 0:03:41.8]} 25... Rb8 {[%clk
0:03:56.6]} 26. Rcd1 {[%clk 0:03:40.3]} 26... Ke6 {[%clk 0:03:54.5]} 27. Ra1
{[%clk 0:03:34.5]} 27... Rb3 {[%clk 0:03:52.6]} 28. Reb1 {[%clk 0:03:33.5]}
28... a5 {[%clk 0:03:49.4]} 29. Rxb3 {[%clk 0:03:31.5]} 29... Bxb3 {[%clk
0:03:49.3]} 30. Rb1 {[%clk 0:03:28]} 30... a4 {[%clk 0:03:49.2]} 31. Kf2 {[%clk
0:03:26.7]} 31... d5 {[%clk 0:03:47.2]} 32. exd5+ {[%clk 0:03:25.1]} 32... Kxd5
{[%clk 0:03:47.1]} 33. Ke3 {[%clk 0:03:22]} 33... Kc4 {[%clk 0:03:46.3]} 34. Kd2
{[%clk 0:03:19.9]} 34... Kd5 {[%clk 0:03:43.8]} 35. g4 {[%clk 0:03:08.2]} 35...
g5 {[%clk 0:03:38.1]} 36. Rc1 {[%clk 0:02:56.5]} 36... Ke5 {[%clk 0:03:28.4]}
37. Re1+ {[%clk 0:02:50.9]} 37... Kf4 {[%clk 0:03:25.8]} 38. Ke2 {[%clk
0:02:41.9]} 38... Bd5 {[%clk 0:03:22.2]} 39. Rd1 {[%clk 0:02:35.1]} 39... Bxf3+
{[%clk 0:03:20.9]} 40. Ke1 {[%clk 0:02:26.2]} 40... Bxd1 {[%clk 0:03:20.8]} 41.
Kxd1 {[%clk 0:02:25.5]} 41... Kxg4 {[%clk 0:03:20.7]} 42. Kd2 {[%clk 0:02:25]}
42... Kh3 {[%clk 0:03:20.6]} 43. Ke3 {[%clk 0:02:24.4]} 43... Kxh2 {[%clk
0:03:20.5]} 44. Kd3 {[%clk 0:02:23.1]} 44... g4 {[%clk 0:03:19.5]} 45. Kc4
{[%clk 0:02:22.3]} 45... g3 {[%clk 0:03:19.4]} 46. Kxc5 {[%clk 0:02:21.7]} 46...
g2 {[%clk 0:03:19.3]} 47. Kb4 {[%clk 0:02:21.2]} 47... g1=Q {[%clk 0:03:19.2]}
48. Kxa4 {[%clk 0:02:20.5]} 48... Qc5 {[%clk 0:03:17.5]} 49. Kb3 {[%clk
0:02:18.6]} 49... Qb5+ {[%clk 0:03:16.1]} 50. Kc2 {[%clk 0:02:17.1]} 50... Qc4
{[%clk 0:03:16]} 51. Kb2 {[%clk 0:02:15]} 51... h5 {[%clk 0:03:15.3]} 52. Kc2
{[%clk 0:02:14.1]} 52... h4 {[%clk 0:03:14.9]} 0-1

[Event "Live Chess"]
[Site "Chess.com"]
[Date "2023.05.20"]
[Round "-"]
[White "stevefairhurst"]
[Black "vinni3012"]
[Result "1-0"]
[WhiteElo "600"]
[BlackElo "1834"]
[TimeControl "300"]
[EndTime "10:59:02 PDT"]
[Termination "stevefairhurst won by resignation"]

1. e4 {[%clk 0:04:59.2]} 1... c6 {[%clk 0:04:59]} 2. d4 {[%clk 0:04:57.6]} 2...
d5 {[%clk 0:04:58.9]} 3. Bd3 {[%clk 0:04:56.8]} 3... dxe4 {[%clk 0:04:55.3]} 4.
Bxe4 {[%clk 0:04:55.9]} 4... Nf6 {[%clk 0:04:55.2]} 5. Bd3 {[%clk 0:04:52.9]}
5... Qxd4 {[%clk 0:04:46]} 6. Nf3 {[%clk 0:04:48.2]} 6... Qd8 {[%clk 0:04:42.1]}
7. Ng5 {[%clk 0:04:46.2]} 7... h6 {[%clk 0:04:33.7]} 8. Nxf7 {[%clk 0:04:43.8]}
8... Kxf7 {[%clk 0:04:28.7]} 9. Bg6+ {[%clk 0:04:43.1]} 9... Kxg6 {[%clk
0:04:27.9]} 10. Qxd8 {[%clk 0:04:42.5]} 10... Bf5 {[%clk 0:04:17.2]} 11. c3
{[%clk 0:04:33.4]} 11... Kf7 {[%clk 0:04:08.9]} 12. Be3 {[%clk 0:04:23.5]} 12...
Nd5 {[%clk 0:03:55.2]} 13. Qa5 {[%clk 0:04:09.5]} 13... Nd7 {[%clk 0:03:42]} 14.
c4 {[%clk 0:04:03.7]} 14... Nxe3 {[%clk 0:03:23.6]} 15. fxe3 {[%clk 0:04:03.6]}
15... Bd3 {[%clk 0:03:18.7]} 16. Qd2 {[%clk 0:03:54.7]} 16... Ne5 {[%clk
0:03:12.7]} 17. Qc3 {[%clk 0:03:41.9]} 17... Ke6 {[%clk 0:03:04.8]} 18. Nd2
{[%clk 0:03:28.8]} 18... Rd8 {[%clk 0:02:54.5]} 19. O-O-O {[%clk 0:03:09.7]}
19... g5 {[%clk 0:02:24]} 20. Nf3 {[%clk 0:03:03.4]} 20... Bg7 {[%clk
0:02:17.8]} 21. Nxe5 {[%clk 0:02:46.3]} 21... Bxe5 {[%clk 0:02:17.7]} 22. Qb3
{[%clk 0:02:30.6]} 22... Be4 {[%clk 0:02:14.8]} 23. Rxd8 {[%clk 0:02:28.1]}
23... Rxd8 {[%clk 0:02:14.7]} 24. c5+ {[%clk 0:02:26.1]} 24... Bd5 {[%clk
0:02:04.4]} 25. Qxb7 {[%clk 0:02:23]} 25... Rd7 {[%clk 0:02:02.3]} 26. Qb4
{[%clk 0:02:17]} 1-0

[Event "Live Chess"]
[Site "Chess.com"]
[Date "2023.05.20"]
[Round "-"]
[White "mattihelenius2"]
[Black "martynstanley"]
[Result "0-1"]
[WhiteElo "450"]
[BlackElo "1020"]
[TimeControl "300"]
[EndTime "10:59:25 PDT"]
[Termination "martynstanley won by resignation"]

1. d4 {[%clk 0:04:55.5]} 1... e6 {[%clk 0:04:59.4]} 2. c4 {[%clk 0:04:53.9]}
2... d5 {[%clk 0:04:58.6]} 3. e3 {[%clk 0:04:40.9]} 3... c5 {[%clk 0:04:56.9]}
4. Nf3 {[%clk 0:04:27.1]} 4... Nc6 {[%clk 0:04:54.5]} 5. dxc5 {[%clk 0:04:23.9]}
5... Bxc5 {[%clk 0:04:53.1]} 6. b3 {[%clk 0:04:17.6]} 6... Qa5+ {[%clk 0:04:48]}
7. Ke2 {[%clk 0:04:15]} 7... Qb6 {[%clk 0:04:27.4]} 8. Nc3 {[%clk 0:04:08.7]}
8... d4 {[%clk 0:04:26]} 9. Nb5 {[%clk 0:04:07.1]} 9... dxe3 {[%clk 0:04:23.2]}
10. fxe3 {[%clk 0:03:59]} 10... a6 {[%clk 0:04:20.6]} 11. Nd6+ {[%clk
0:03:55.3]} 11... Bxd6 {[%clk 0:04:17.2]} 12. Qxd6 {[%clk 0:03:48.9]} 12... Nge7
{[%clk 0:04:14.9]} 13. Ne5 {[%clk 0:03:30.1]} 13... O-O {[%clk 0:04:12.8]} 14.
c5 {[%clk 0:03:11]} 14... Qd8 {[%clk 0:04:04.6]} 15. Qxd8 {[%clk 0:02:25.5]}
15... Nxd8 {[%clk 0:04:03.3]} 16. Bb2 {[%clk 0:02:15.4]} 16... f6 {[%clk
0:04:02.1]} 17. Ng4 {[%clk 0:02:10.7]} 17... e5 {[%clk 0:04:00.8]} 18. Rd1
{[%clk 0:02:08.6]} 18... Ndc6 {[%clk 0:03:58.4]} 19. Rd6 {[%clk 0:02:00.6]}
19... Bxg4+ {[%clk 0:03:57.1]} 20. Kd2 {[%clk 0:01:54.2]} 20... Rad8 {[%clk
0:03:55.1]} 21. Rxd8 {[%clk 0:01:48.3]} 21... Rxd8+ {[%clk 0:03:54]} 22. Kc3
{[%clk 0:01:46.4]} 22... Nd5+ {[%clk 0:03:50]} 23. Kc2 {[%clk 0:01:31.3]} 23...
Nxe3+ {[%clk 0:03:48.5]} 24. Kc3 {[%clk 0:01:29.3]} 24... Nd5+ {[%clk
0:03:39.5]} 25. Kc2 {[%clk 0:01:26.2]} 25... Ndb4+ {[%clk 0:03:38.6]} 26. Kc3
{[%clk 0:01:24.6]} 26... Nxa2+ {[%clk 0:03:37.8]} 27. Kc2 {[%clk 0:01:22.1]}
27... Bf5+ {[%clk 0:03:36.4]} 28. Bd3 {[%clk 0:01:20.6]} 28... Bxd3+ {[%clk
0:03:34.6]} 29. Kd2 {[%clk 0:01:16.1]} 29... Nab4 {[%clk 0:03:32.1]} 30. Rd1
{[%clk 0:01:14.8]} 30... Bg6+ {[%clk 0:03:25.5]} 31. Kc3 {[%clk 0:01:13.1]}
31... Rxd1 {[%clk 0:03:24.1]} 32. Kc4 {[%clk 0:01:11.7]} 32... Rd2 {[%clk
0:03:22.3]} 33. Bc3 {[%clk 0:01:10.8]} 33... Rxg2 {[%clk 0:03:21]} 34. Bxb4
{[%clk 0:01:10.1]} 34... Nxb4 {[%clk 0:03:19.3]} 35. Kxb4 {[%clk 0:01:09.4]}
35... Rxh2 {[%clk 0:03:18.2]} 36. Ka5 {[%clk 0:01:08]} 36... Ra2+ {[%clk
0:03:16.5]} 37. Kb4 {[%clk 0:01:06.4]} 37... Kf8 {[%clk 0:03:14.1]} 38. Kc4
{[%clk 0:01:05.1]} 38... Ke8 {[%clk 0:03:13]} 39. b4 {[%clk 0:01:04.4]} 39...
Kd7 {[%clk 0:03:11.5]} 40. Kd5 {[%clk 0:01:03.3]} 40... Bh5 {[%clk 0:03:07.6]}
41. Kc4 {[%clk 0:01:02]} 41... Be2+ {[%clk 0:03:05.4]} 42. Kd5 {[%clk
0:01:00.7]} 42... Rd2+ {[%clk 0:03:04.3]} 43. Ke4 {[%clk 0:00:58.8]} 43... Kc6
{[%clk 0:03:02.3]} 44. Kf5 {[%clk 0:00:55.3]} 44... g6+ {[%clk 0:03:00.7]} 45.
Ke6 {[%clk 0:00:53.7]} 45... f5 {[%clk 0:02:59.6]} 46. Kxe5 {[%clk 0:00:52.4]}
46... Kb5 {[%clk 0:02:58.7]} 47. Ke6 {[%clk 0:00:51.4]} 47... Kxb4 {[%clk
0:02:58]} 48. Ke7 {[%clk 0:00:49.1]} 48... Kxc5 {[%clk 0:02:56.7]} 49. Kf7
{[%clk 0:00:47.2]} 49... Rd6 {[%clk 0:02:55.2]} 50. Kg7 {[%clk 0:00:46.2]} 50...
g5 {[%clk 0:02:54]} 51. Kxh7 {[%clk 0:00:45.1]} 51... Kc6 {[%clk 0:02:52.8]} 52.
Kg7 {[%clk 0:00:44.1]} 52... g4 {[%clk 0:02:52.3]} 53. Kf7 {[%clk 0:00:43]}
53... f4 {[%clk 0:02:51.7]} 54. Ke7 {[%clk 0:00:42.3]} 54... f3 {[%clk
0:02:51.1]} 55. Ke8 {[%clk 0:00:41.3]} 55... g3 {[%clk 0:02:50.6]} 0-1

[Event "Live Chess"]
[Site "Chess.com"]
[Date "2023.05.20"]
[Round "-"]
[White "lucaskk818"]
[Black "mach247"]
[Result "1-0"]
[WhiteElo "1885"]
[BlackElo "1298"]
[TimeControl "300"]
[EndTime "10:59:25 PDT"]
[Termination "lucaskk818 won by resignation"]

1. Nf3 {[%clk 0:04:57.7]} 1... d5 {[%clk 0:04:57.5]} 2. c4 {[%clk 0:04:55.1]}
2... dxc4 {[%clk 0:04:56.5]} 3. e3 {[%clk 0:04:52.5]} 3... b5 {[%clk 0:04:53.6]}
4. a4 {[%clk 0:04:51.4]} 4... Bd7 {[%clk 0:04:48.3]} 5. axb5 {[%clk 0:04:46.3]}
5... Bxb5 {[%clk 0:04:46.8]} 6. Nd4 {[%clk 0:04:41.9]} 6... c6 {[%clk 0:04:42]}
7. Qf3 {[%clk 0:04:37]} 7... Nd7 {[%clk 0:04:19.9]} 8. Nc3 {[%clk 0:03:57.1]}
8... Ne5 {[%clk 0:03:38.6]} 9. Qe4 {[%clk 0:03:41.8]} 9... Nd3+ {[%clk
0:03:31.9]} 10. Bxd3 {[%clk 0:03:38.2]} 10... cxd3 {[%clk 0:03:31.8]} 11. Nxc6
{[%clk 0:03:33.8]} 11... Bxc6 {[%clk 0:03:18.5]} 12. Qxc6+ {[%clk 0:03:31.5]}
1-0

[Event "Live Chess"]
[Site "Chess.com"]
[Date "2023.05.20"]
[Round "-"]
[White "jennybobby44"]
[Black "Reggie016"]
[Result "1-0"]
[WhiteElo "1851"]
[BlackElo "1072"]
[TimeControl "300"]
[EndTime "10:59:26 PDT"]
[Termination "jennybobby44 won by resignation"]

1. Nf3 {[%clk 0:04:58.6]} 1... e6 {[%clk 0:04:57.6]} 2. g3 {[%clk 0:04:57]} 2...
f5 {[%clk 0:04:55]} 3. Bg2 {[%clk 0:04:56]} 3... Nf6 {[%clk 0:04:54.7]} 4. d4
{[%clk 0:04:55.2]} 4... c5 {[%clk 0:04:51.5]} 5. c4 {[%clk 0:04:51.6]} 5... Nc6
{[%clk 0:04:49.2]} 6. O-O {[%clk 0:04:43.9]} 6... Be7 {[%clk 0:04:48.2]} 7. d5
{[%clk 0:04:42.6]} 7... exd5 {[%clk 0:04:47.2]} 8. cxd5 {[%clk 0:04:41.5]} 8...
Nb4 {[%clk 0:04:42.8]} 9. d6 {[%clk 0:04:28.5]} 9... Bf8 {[%clk 0:04:41.8]} 10.
Nc3 {[%clk 0:04:17.6]} 10... Qb6 {[%clk 0:04:37.4]} 11. Bf4 {[%clk 0:04:11.3]}
11... Nbd5 {[%clk 0:04:22.8]} 12. Nxd5 {[%clk 0:04:09.7]} 12... Nxd5 {[%clk
0:04:22.7]} 13. Qxd5 {[%clk 0:04:08.3]} 1-0

[Event "Live Chess"]
[Site "Chess.com"]
[Date "2023.05.20"]
[Round "-"]
[White "1600x"]
[Black "Vladyslav2008"]
[Result "1-0"]
[WhiteElo "1564"]
[BlackElo "2178"]
[TimeControl "300"]
[EndTime "10:59:42 PDT"]
[Termination "1600x won by resignation"]

1. d4 {[%clk 0:04:52.5]} 1... Nf6 {[%clk 0:04:56.2]} 2. Nf3 {[%clk 0:04:40.9]}
2... d5 {[%clk 0:04:52.9]} 3. Nbd2 {[%clk 0:04:34.3]} 3... c5 {[%clk 0:04:50.8]}
4. dxc5 {[%clk 0:04:21.9]} 4... Nc6 {[%clk 0:04:47.5]} 5. c3 {[%clk 0:04:19]}
5... a5 {[%clk 0:04:44.9]} 6. b4 {[%clk 0:04:17.1]} 6... axb4 {[%clk 0:04:43.2]}
7. cxb4 {[%clk 0:04:15.9]} 7... Nxb4 {[%clk 0:04:42.2]} 8. Qb3 {[%clk
0:04:11.1]} 8... Nc6 {[%clk 0:04:36.8]} 9. Bb2 {[%clk 0:04:07.7]} 9... e6 {[%clk
0:04:34.5]} 10. Qc3 {[%clk 0:04:05.7]} 10... Ne4 {[%clk 0:04:28]} 11. Nxe4
{[%clk 0:04:03.6]} 11... dxe4 {[%clk 0:04:27.6]} 12. Rd1 {[%clk 0:04:00.9]}
12... Qe7 {[%clk 0:04:22.6]} 13. Nd2 {[%clk 0:03:57.7]} 13... Qxc5 {[%clk
0:04:15.6]} 14. Qxc5 {[%clk 0:03:54.1]} 14... Bxc5 {[%clk 0:04:14]} 15. Bxg7
{[%clk 0:03:50.7]} 15... Rg8 {[%clk 0:04:10.5]} 16. Nxe4 {[%clk 0:03:48.5]}
16... Bb4+ {[%clk 0:04:08.6]} 17. Bc3 {[%clk 0:03:42.8]} 17... Rxa2 {[%clk
0:04:05]} 18. Nf6+ {[%clk 0:03:40.7]} 18... Kf8 {[%clk 0:03:45.7]} 19. Bxb4+
{[%clk 0:03:38]} 19... Nxb4 {[%clk 0:03:44.5]} 20. Rd8+ {[%clk 0:03:27.8]} 20...
Ke7 {[%clk 0:03:43.2]} 21. Rxg8 {[%clk 0:03:22.6]} 21... Kxf6 {[%clk 0:03:28.2]}
22. Rxc8 {[%clk 0:03:20]} 22... Nc2+ {[%clk 0:03:26.9]} 23. Kd1 {[%clk
0:03:16.5]} 23... Nd4 {[%clk 0:03:22.1]} 24. Rc7 {[%clk 0:03:11.9]} 24... b5
{[%clk 0:03:20.4]} 25. e3 {[%clk 0:03:06.9]} 25... Nb3 {[%clk 0:03:17.7]} 26.
Rc1 {[%clk 0:03:04.2]} 26... Nxc1 {[%clk 0:03:15.6]} 27. Kxc1 {[%clk 0:03:04.1]}
27... Rxf2 {[%clk 0:03:13.4]} 28. g4 {[%clk 0:02:58.5]} 28... b4 {[%clk
0:03:11.2]} 29. Bd3 {[%clk 0:02:56.4]} 29... h6 {[%clk 0:03:08.4]} 30. Kd1
{[%clk 0:02:52.1]} 30... Ra2 {[%clk 0:03:06]} 31. Rf1+ {[%clk 0:02:45.6]} 31...
Ke7 {[%clk 0:03:01.8]} 32. Bc2 {[%clk 0:02:43.6]} 32... b3 {[%clk 0:02:43.7]}
33. Bxb3 {[%clk 0:02:41.5]} 33... Rxh2 {[%clk 0:02:43.4]} 34. Bc4 {[%clk
0:02:39.3]} 34... Rh4 {[%clk 0:02:39.4]} 35. Be2 {[%clk 0:02:37.9]} 35... Rh3
{[%clk 0:02:37.8]} 36. Kd2 {[%clk 0:02:35.4]} 36... f6 {[%clk 0:02:33.6]} 37.
Rf4 {[%clk 0:02:32.4]} 37... e5 {[%clk 0:02:32.3]} 38. Ra4 {[%clk 0:02:20.5]}
38... Kf7 {[%clk 0:02:28.7]} 39. Ra7+ {[%clk 0:02:17.1]} 39... Kg6 {[%clk
0:02:26.9]} 40. Bd3+ {[%clk 0:02:15.3]} 40... Kg5 {[%clk 0:02:25.5]} 41. Rg7+
{[%clk 0:02:13.2]} 41... Kh4 {[%clk 0:02:23.2]} 42. Rg6 {[%clk 0:02:11.2]} 42...
Rh2+ {[%clk 0:02:19.6]} 43. Be2 {[%clk 0:02:09.6]} 1-0

[Event "Live Chess"]
[Site "Chess.com"]
[Date "2023.05.20"]
[Round "-"]
[White "yeetpizza74"]
[Black "hturner40"]
[Result "0-1"]
[WhiteElo "448"]
[BlackElo "1820"]
[TimeControl "300"]
[EndTime "10:59:52 PDT"]
[Termination "hturner40 won by checkmate"]

1. e4 {[%clk 0:04:57.1]} 1... Nc6 {[%clk 0:04:59.1]} 2. d4 {[%clk 0:04:54.7]}
2... e5 {[%clk 0:04:57.8]} 3. Nf3 {[%clk 0:04:50]} 3... exd4 {[%clk 0:04:55.6]}
4. Nxd4 {[%clk 0:04:48.9]} 4... Nf6 {[%clk 0:04:54.4]} 5. Nc3 {[%clk 0:04:45.9]}
5... Nxe4 {[%clk 0:04:52.2]} 6. Nxe4 {[%clk 0:04:43.5]} 6... Qe7 {[%clk
0:04:49.1]} 7. Bd3 {[%clk 0:04:37.8]} 7... Nxd4 {[%clk 0:04:36.2]} 8. O-O {[%clk
0:04:24.4]} 8... d5 {[%clk 0:04:27.4]} 9. Re1 {[%clk 0:04:18.7]} 9... dxe4
{[%clk 0:04:24.4]} 10. Rxe4 {[%clk 0:04:15.8]} 10... Ne6 {[%clk 0:04:22.9]} 11.
Bc4 {[%clk 0:04:12.8]} 11... Bd7 {[%clk 0:04:10.4]} 12. Bxe6 {[%clk 0:04:09]}
12... fxe6 {[%clk 0:04:04.9]} 13. Bf4 {[%clk 0:04:06.1]} 13... O-O-O {[%clk
0:04:01.8]} 14. Qd2 {[%clk 0:03:45.7]} 14... Bc6 {[%clk 0:03:46.7]} 15. Re3
{[%clk 0:03:31]} 15... Rxd2 {[%clk 0:03:44.1]} 16. Rc1 {[%clk 0:03:15.9]} 16...
Qd7 {[%clk 0:03:32.7]} 17. Ree1 {[%clk 0:03:10.4]} 17... Qd5 {[%clk 0:03:27.7]}
18. Bxd2 {[%clk 0:02:59.6]} 18... Qxg2# {[%clk 0:03:23.8]} 0-1

[Event "Live Chess"]
[Site "Chess.com"]
[Date "2023.05.20"]
[Round "-"]
[White "NAZRIZ1977"]
[Black "Lewstar1"]
[Result "1-0"]
[WhiteElo "2181"]
[BlackElo "454"]
[TimeControl "300"]
[EndTime "11:00:01 PDT"]
[Termination "NAZRIZ1977 won by resignation"]

1. c4 {[%clk 0:04:57.3]} 1... e5 {[%clk 0:04:57.3]} 2. g3 {[%clk 0:04:56.8]}
2... Nf6 {[%clk 0:04:55.6]} 3. Bg2 {[%clk 0:04:56.3]} 3... Nc6 {[%clk
0:04:53.9]} 4. Nc3 {[%clk 0:04:55.4]} 4... g6 {[%clk 0:04:46.8]} 5. Nf3 {[%clk
0:04:53.5]} 5... Bg7 {[%clk 0:04:45.5]} 6. d3 {[%clk 0:04:53]} 6... O-O {[%clk
0:04:40.9]} 7. Bg5 {[%clk 0:04:52.5]} 7... h6 {[%clk 0:04:37.2]} 8. Bxf6 {[%clk
0:04:51.6]} 8... Bxf6 {[%clk 0:04:33.8]} 9. O-O {[%clk 0:04:51.5]} 9... Re8
{[%clk 0:04:31.5]} 10. Rb1 {[%clk 0:04:51]} 10... b6 {[%clk 0:04:20.7]} 11. b4
{[%clk 0:04:47]} 11... Bb7 {[%clk 0:04:18.8]} 12. Nd2 {[%clk 0:04:45.7]} 12...
Rb8 {[%clk 0:04:12.9]} 13. Qa4 {[%clk 0:04:43.4]} 13... Kg7 {[%clk 0:04:04]} 14.
Nde4 {[%clk 0:04:41.3]} 14... a6 {[%clk 0:03:57.3]} 15. Nd5 {[%clk 0:04:38.5]}
15... Re6 {[%clk 0:03:45.3]} 16. Ndxf6 {[%clk 0:04:36.1]} 16... Rxf6 {[%clk
0:03:45.2]} 17. Nxf6 {[%clk 0:04:35.6]} 17... Kxf6 {[%clk 0:03:45.1]} 18. Qb3
{[%clk 0:04:34.7]} 18... Nd4 {[%clk 0:03:42]} 19. Qd1 {[%clk 0:04:33.2]} 19...
Bxg2 {[%clk 0:03:37.8]} 20. Kxg2 {[%clk 0:04:33.1]} 20... c5 {[%clk 0:03:26.1]}
21. e3 {[%clk 0:04:30.7]} 21... Ne6 {[%clk 0:03:22]} 22. Qf3+ {[%clk 0:04:27.5]}
22... Kg7 {[%clk 0:03:18.5]} 23. Rb2 {[%clk 0:04:26.3]} 23... b5 {[%clk
0:03:15.2]} 24. Rfb1 {[%clk 0:04:22.2]} 24... bxc4 {[%clk 0:03:11.3]} 25. dxc4
{[%clk 0:04:21.4]} 25... cxb4 {[%clk 0:03:06.5]} 26. Rxb4 {[%clk 0:04:20]} 26...
Rxb4 {[%clk 0:03:06.2]} 27. Rxb4 {[%clk 0:04:19.3]} 27... Qa5 {[%clk 0:03:04.6]}
28. Qb7 {[%clk 0:04:08.9]} 28... Nc5 {[%clk 0:02:54.8]} 29. Qb6 {[%clk
0:04:06.5]} 29... Qxb6 {[%clk 0:02:44.7]} 30. Rxb6 {[%clk 0:04:06.4]} 30... Nd3
{[%clk 0:02:42]} 31. Rxa6 {[%clk 0:04:04.3]} 31... Ne1+ {[%clk 0:02:37.7]} 32.
Kf1 {[%clk 0:04:01.2]} 32... Nf3 {[%clk 0:02:37.2]} 33. h4 {[%clk 0:04:00.3]}
33... Nh2+ {[%clk 0:02:30.5]} 34. Ke2 {[%clk 0:03:59.1]} 34... Ng4 {[%clk
0:02:30.4]} 35. a4 {[%clk 0:03:58]} 35... f5 {[%clk 0:02:27.5]} 36. a5 {[%clk
0:03:57.2]} 36... Nf6 {[%clk 0:02:25.9]} 37. Ra7 {[%clk 0:03:56.2]} 37... Ne8
{[%clk 0:02:25.3]} 38. a6 {[%clk 0:03:55.8]} 38... Nd6 {[%clk 0:02:23.7]} 39.
Rxd7+ {[%clk 0:03:54.7]} 1-0

[Event "Live Chess"]
[Site "Chess.com"]
[Date "2023.05.20"]
[Round "-"]
[White "yarek"]
[Black "Kr1xot4_XGOD"]
[Result "0-1"]
[WhiteElo "1893"]
[BlackElo "2213"]
[TimeControl "300"]
[EndTime "11:00:02 PDT"]
[Termination "Kr1xot4_XGOD won by checkmate"]

1. e4 {[%clk 0:04:57.1]} 1... c5 {[%clk 0:04:58.7]} 2. Nf3 {[%clk 0:04:54.3]}
2... e6 {[%clk 0:04:58]} 3. d4 {[%clk 0:04:52.3]} 3... cxd4 {[%clk 0:04:55.9]}
4. c3 {[%clk 0:04:50.9]} 4... dxc3 {[%clk 0:04:52.4]} 5. Nxc3 {[%clk 0:04:50]}
5... Nc6 {[%clk 0:04:50.5]} 6. Bc4 {[%clk 0:04:48.6]} 6... a6 {[%clk 0:04:47.5]}
7. O-O {[%clk 0:04:46.7]} 7... Nge7 {[%clk 0:04:43.9]} 8. Bf4 {[%clk 0:04:43.3]}
8... Ng6 {[%clk 0:04:40.8]} 9. Bg3 {[%clk 0:04:41.2]} 9... h5 {[%clk 0:04:37.7]}
10. h3 {[%clk 0:04:36.1]} 10... b5 {[%clk 0:04:34.4]} 11. Bd3 {[%clk 0:04:33.9]}
11... d6 {[%clk 0:04:28.1]} 12. Qe2 {[%clk 0:04:30.7]} 12... Be7 {[%clk
0:04:25]} 13. Rfd1 {[%clk 0:04:28]} 13... h4 {[%clk 0:04:17.3]} 14. Bh2 {[%clk
0:04:23.5]} 14... Qb6 {[%clk 0:04:13]} 15. e5 {[%clk 0:04:05.8]} 15... Ngxe5
{[%clk 0:04:07.5]} 16. Nxe5 {[%clk 0:03:37.2]} 16... dxe5 {[%clk 0:04:03.3]} 17.
Bxe5 {[%clk 0:03:32.4]} 17... Nxe5 {[%clk 0:04:02.5]} 18. Qxe5 {[%clk
0:03:31.1]} 18... Bf6 {[%clk 0:04:00.4]} 19. Qe2 {[%clk 0:03:01.5]} 19... O-O
{[%clk 0:03:53.7]} 20. Qe4 {[%clk 0:02:56.4]} 20... Rd8 {[%clk 0:03:50.4]} 21.
Qxa8 {[%clk 0:02:29]} 21... Bb7 {[%clk 0:03:38.7]} 22. Bh7+ {[%clk 0:02:18]}
22... Kxh7 {[%clk 0:03:33.1]} 23. Rxd8 {[%clk 0:01:44.6]} 23... Bxd8 {[%clk
0:03:29.7]} 24. Qb8 {[%clk 0:01:40.6]} 24... Qc6 {[%clk 0:03:25.1]} 25. Qf4
{[%clk 0:01:27.1]} 25... Qxg2# {[%clk 0:03:21.5]} 0-1